[Event "Marshall CC U2400 April 2024"]
[Site "New York"]
[Date "2024.04.21"]
[Round "3.5"]
[White "Mateos del Pozo, David"]
[Black "Knowles, Chase"]
[Result "1/2-1/2"]
[ECO "C14"]
[WhiteElo "1642"]
[BlackElo "1978"]
[Annotator "TA"]
[PlyCount "73"]
[EventDate "2024.04.20"]
[EventType "swiss"]
[EventCountry "USA"]
[SourceTitle "playchess.com"]
[Source "ChessBase"]
[SourceQuality "1"]
[TimeControl "5400+30"]

{[%evp 13,73,38,39,30,29,0,0,0,0,-3,0,-31,72,69,56,40,50,50,88,90,91,37,33,30,463,451,422,439,410,264,253,237,222,229,218,187,192,161,204,196,185,166,216,191,200,20,206,222,231,164,166,45,101,0,156,29,32,0,130,0,34,0]} 1. e4 {[%emt 0:00:02][%cal Be2e4,Be4e5][%mdl 32]} e6 {[%emt 0:00:04]} 2. d4 {[%emt 0:00:05]} d5 {[%emt 0:00:03]} 3. Nc3 {[%emt 0:00:07]} Nf6 {[%emt 0:00:04]} 4. Bg5 {[%emt 0:00:06]} Be7 {[%emt 0:00:07]} 5. e5 {[%emt 0:00:07]} Ne4 {[%emt 0:00:11]} 6. Bxe7 {[%emt 0:00:13]} Qxe7 {[%emt 0:00:05]} 7. Nxe4 {[%emt 0:02:29]} dxe4 {[%emt 0:00:06]} 8. c3 {[%emt 0:00:18] Prevents Qb4} Nd7 {[%emt 0:00:18]} 9. Qg4 {[%emt 0:03:27]} f5 {[%emt 0:00:21]} 10. Qh5+ {[%emt 0:00:49] The position is equal.} g6 {[%emt 0:02:10]} 11. Qh6 {[%emt 0:01:12]} c5 {[%emt 0:00:43][%cal Bc7c5,Bc5c4][%mdl 32]} 12. a3 {[%emt 0:10:17]} b6 {[%emt 0:02:50]} (12... Nb6 $15 {stays ahead.}) 13. h4 $16 {[%emt 0:02:56] White is more active.} Bb7 {[%emt 0:00:53]} 14. Bc4 {[%emt 0:05:33][%cal Bf1c4,Bc4b3,Bb3c2][%mdl 32]} Rc8 {[%emt 0:17:00]} 15. Bb3 {[%emt 0:03:49]} c4 {[%emt 0:01:12]} 16. Bc2 {[%emt 0:02:33]} b5 {[%emt 0:01:14] [#]} 17. Nh3 {[%emt 0:04:03]} (17. a4 $1 $16 {[%cal Ra4b5]}) 17... Nb6 $1 $14 {[%emt 0:05:46]} 18. Nf4 {[%emt 0:07:33] Black must now prevent Nxg6.} Kf7 {[%emt 0:06:41][%mdl 8192]} (18... Rg8 $11) 19. h5 $18 {[%emt 0:01:56]} ({Less strong is} 19. g4 Qf8 20. Qg5 Nd5 $14) 19... g5 {[%emt 0:00:59] [#]} 20. Ng6 {[%emt 0:03:02][%mdl 512]} Qd8 {[%emt 0:04:07]} 21. Nxh8+ {[%emt 0:02:54]} Qxh8 {[%emt 0:00:09]} 22. g4 {[%emt 0:06:02] gxf5 is the strong threat.} ({But not} 22. Qxg5 $6 Rg8 23. Qh4 Rg4 $16) 22... Qg7 {[%emt 0:03:45]} 23. Qxg7+ {[%emt 0:00:39]} Kxg7 {[%emt 0:00:01]} 24. gxf5 {[%emt 0:00:12]} exf5 {[%emt 0:00:05]} 25. Rh2 {[%emt 0:00:33][%cal Of2f3] Strongly threatening f3!} h6 {[%emt 0:00:52]} 26. a4 {[%emt 0:01:22]} b4 {[%emt 0:00:12]} 27. cxb4 {[%emt 0:02:42][%cal Of2f3,Bc3b4,Bb4b5][%mdl 32] aiming for f3!} Nd5 {[%emt 0:01:18]} (27... c3 $142 28. O-O-O g4) 28. b5 {[%emt 0:06:19]} Nb4 {[%emt 0:01:20]} 29. O-O-O {[%emt 0:07:41]} (29. Kd2 $18) 29... Bd5 $2 {[%emt 0:02:31]} (29... Nd3+ $1 $11 {and Black has nothing to worry.} 30. Kb1 g4) 30. Kd2 {[%emt 0:08:50]} Be6 {[%emt 0:04:07]} 31. Bb1 {[%emt 0:06:17]} Rd8 {[%emt 0:05:42]} 32. Kc3 {[%emt 0:03:43]} ({Better is} 32. Rhh1 $18) 32... Nd5+ $14 {[%emt 0:00:41] [#]} 33. Kd2 {[%emt 0:00:52]} (33. Kc2 $1 $16) 33... Nf4 $2 {[%emt 0:01:45]} (33... Nb4 $1 $11) 34. Ke3 {[%emt 0:01:06]} (34. Bc2 $16) 34... Nd5+ $1 $11 {[%emt 0:01:01]} 35. Kd2 {[%emt 0:00:01]} (35. Ke2 $14) 35... Nf4 $16 {[%emt 0:00:24]} 36. Ke3 {[%emt 0:00:36]} ({White should play} 36. Rhh1 $16) 36... Nd5+ $1 $14 {[%emt 0:00:28]} 37. Kd2 {[%emt 0:00:38] Weighted Error Value: White=0.47/Black=0.45.  Loses game:     	---       	Black=2      Missed win:     	White=1     	---        Mistake:       	White=6     	Black=3      Inaccurate:     	White=4     	Black=1      OK:         	White=8     	Black=8      Best:        	White=1     	Black=3      Strong:       	---       	Black=3      Brilliant:      	White=1     	---} 1/2-1/2

[Event "Marshall CC U2400 April 2024"]
[Site "New York"]
[Date "2024.04.21"]
[Round "4.1"]
[White "Jiang, Jason"]
[Black "Hoffman, Luc"]
[Result "0-1"]
[ECO "A50"]
[WhiteElo "2005"]
[BlackElo "2006"]
[Annotator "TA"]
[PlyCount "64"]
[EventDate "2024.04.20"]
[EventType "swiss"]
[EventCountry "USA"]
[SourceTitle "playchess.com"]
[Source "ChessBase"]
[SourceQuality "1"]
[TimeControl "5400+30"]

{[%evp 10,64,22,20,29,17,21,20,78,62,54,15,114,94,111,60,59,26,32,-38,-51,-60,-39,-263,-83,-137,-102,-242,-250,-356,-292,-331,-335,-445,-435,-435,-400,-468,-452,-545,-544,-576,-575,-539,-497,-498,-484,-977,-964,-1203,-1177,-1718,-1654,-1691,-1531,-29989,-29990]} 1. c4 {[%emt 0:00:03]} b6 {[%emt 0:00:40]} 2. Nc3 {[%emt 0:00:30]} Bb7 {[%emt 0:00:23]} 3. d4 {[%emt 0:00:44]} Nf6 {[%emt 0:00:14][%cal Bg8f6,Bf6d5,Bd5c3][%mdl 32]} 4. Qc2 {[%emt 0:01:39]} d5 {[%emt 0:01:58]} 5. cxd5 {[%emt 0:00:50]} Nxd5 {[%emt 0:00:12]} 6. e4 {[%emt 0:00:16]} Nxc3 {[%emt 0:00:17]} 7. bxc3 {[%emt 0:00:12]} e6 {[%emt 0:00:02]} 8. Nf3 {[%emt 0:01:20]} c5 {[%emt 0:05:29]} (8... Be7 $11) 9. Bb5+ $16 {[%emt 0:03:01]} Bc6 $1 {[%emt 0:01:07]} 10. Bd3 {[%emt 0:03:04][%cal Od4d5] Black must now prevent d5!} Nd7 {[%emt 0:04:38]} (10... cxd4 $1 $11 {keeps the balance.} 11. cxd4 Bb4+ 12. Kf1 O-O) 11. O-O {[%emt 0:02:50][%cal Od4d5] And now d5! would win.} Be7 {[%emt 0:01:13]} 12. Rd1 {[%emt 0:06:02]} (12. d5 $16 exd5 13. exd5 Bxd5 14. Re1) 12... cxd4 $1 $14 {[%emt 0:09:06]} 13. Nxd4 {[%emt 0:05:10]} Qc7 {[%emt 0:07:14]} 14. Qe2 {[%emt 0:27:04]} (14. Nxc6 $14 Qxc6 15. Rb1) 14... Ba4 $1 $15 {[%emt 0:05:03][%csl LRc3,LRd1]} 15. Nb5 {[%emt 0:08:23]} Qc6 {[%emt 0:02:34]} 16. Bf4 $2 {[%emt 0:04:45] [#]} O-O $2 {[%emt 0:03:24]} (16... Bxd1 17. Rxd1 e5 18. Bc4 exf4 19. Bd5 $19) (16... e5 $1 $19 {[%cal Oa4d1]} 17. Bg3 a6 (17... Bxd1 18. Rxd1 a6 19. Nd4 $19)) 17. Nc7 {[%emt 0:03:58]} e5 {[%emt 0:07:45]} (17... Bxd1 18. Rxd1 Qxc3 19. Nxa8 Rxa8 20. Bb1 $17) 18. Nxa8 {[%emt 0:07:03]} (18. Nd5 $17 Qd6 (18... Bxd1 $2 {loses.} 19. Nxe7+ Kh8 20. Rxd1 $18) 19. Bg3) 18... exf4 $19 {[%emt 0:01:09]} 19. Bc4 {[%emt 0:01:10]} (19. Bc2 {was necessary.} Bxc2 (19... Rxa8 $2 20. Bxa4 Qxa4 21. e5 $19) 20. Qxc2) 19... Qxa8 {[%emt 0:02:17]} (19... Rxa8 20. Bd5 Qc8 (20... Bxd1 21. Rxd1 Qc8 22. Bxa8 $16) 21. Bxa8 Qxa8 22. Rd5 $17) 20. Rd4 {[%emt 0:00:44]} Bc6 {[%emt 0:02:23]} 21. e5 {[%emt 0:00:36]} f3 {[%emt 0:03:23]} 22. Qe1 {[%emt 0:00:59]} Nc5 {[%emt 0:03:10]} ({Weaker is} 22... fxg2 23. e6 Bf6 (23... Bc5 24. Rxd7 Bxd7 25. exd7 $16) 24. Rxd7 Bxd7 25. exd7 $17) 23. Rad1 {[%emt 0:01:23]} Ne6 {[%emt 0:02:58]} 24. Rg4 {[%emt 0:00:55]} fxg2 {[%emt 0:00:47]} 25. Rg3 {[%emt 0:02:22]} Bc5 {[%emt 0:01:44]} 26. Qe2 {[%emt 0:00:35]} Nf4 {[%emt 0:03:55]} 27. Qg4 {[%emt 0:00:12][%csl Gg3][%cal Rg4g7] [#]} Ng6 {[%emt 0:00:01]} 28. e6 {[%emt 0:02:00]} (28. h4 $142 Qc8 (28... Nxe5 29. Qxg7#) 29. Qxc8 Rxc8 30. e6) 28... fxe6 {[%emt 0:01:16]} 29. Bxe6+ {[%emt 0:00:52]} Kh8 {[%emt 0:00:01][%csl Gf8][%cal Rc5f2]} 30. Rd4 {[%emt 0:01:24]} Bxd4 {[%emt 0:00:36]} 31. cxd4 {[%emt 0:00:12]} Bf3 {[%emt 0:00:26]} 32. Qg5 {[%emt 0:00:22]} Qe4 {[%emt 0:00:21][%csl LRd4,LRe6] Weighted Error Value: White=1.17/Black=0.21 (precise) .  Loses game:     	White=1     	---        Missed win:     	---       	Black=1      Mistake:       	White=6     	Black=2      Inaccurate:     	White=3     	---        OK:         	White=6     	Black=7      Best:        	---       	Black=3      Strong:       	---       	Black=3} 0-1

[Event "Marshall CC U2400 April 2024"]
[Site "New York"]
[Date "2024.04.21"]
[Round "4.2"]
[White "Stancil, Kimani"]
[Black "Panico, Nick"]
[Result "1/2-1/2"]
[ECO "C11"]
[WhiteElo "1873"]
[BlackElo "1952"]
[Annotator "TA"]
[PlyCount "89"]
[EventDate "2024.04.20"]
[EventType "swiss"]
[EventCountry "USA"]
[SourceTitle "playchess.com"]
[Source "ChessBase"]
[SourceQuality "1"]
[TimeControl "5400+30"]

{[%evp 20,89,13,-63,-68,-80,-90,-119,-126,-116,-127,-118,-123,-113,-112,-120,-59,-132,-85,-90,-86,-100,-66,-82,-27,-54,-12,-37,-8,-65,28,0,0,0,0,0,0,0,0,0,4,12,124,0,0,-20,-22,-24,-24,-80,-76,-58,-19,-28,57,0,55,48,113,97,168,171,289,282,234,0,105,98,170,0,0,0]} 1. e4 {[%emt 0:00:02][%cal Be2e4,Be4e5][%mdl 32]} e6 {[%emt 0:00:53]} 2. d4 {[%emt 0:00:08]} d5 {[%emt 0:00:07]} 3. Nc3 {[%emt 0:00:02]} Nf6 {[%emt 0:00:06]} 4. e5 {[%emt 0:00:06]} Nfd7 {[%emt 0:00:05]} 5. f4 {[%emt 0:00:03]} c5 {[%emt 0:00:10]} 6. Nf3 {[%emt 0:00:02]} Nc6 {[%emt 0:00:07]} 7. Be3 {[%emt 0:00:05]} cxd4 {[%emt 0:00:04]} 8. Nxd4 {[%emt 0:00:05]} Qb6 {[%emt 0:00:04]} 9. Qd2 {[%emt 0:00:19]} Qxb2 {[%emt 0:00:07]} 10. Rb1 {[%emt 0:00:06]} Qa3 {[%emt 0:00:03]} 11. Rb3 {[%emt 0:09:41]} (11. Bb5 $1 $11 Nxd4 12. Bxd4) 11... Qa5 $15 {[%emt 0:02:15]} 12. Bb5 {[%emt 0:01:25] [#]} Qc7 {[%emt 0:13:08]} 13. Nxc6 {[%emt 0:24:06]} bxc6 {[%emt 0:00:21] Black is better.} 14. Be2 {[%emt 0:00:10]} Bc5 {[%emt 0:19:43]} 15. O-O {[%emt 0:00:18]} O-O {[%emt 0:00:50]} 16. Na4 {[%emt 0:02:54]} Bxe3+ {[%emt 0:00:57]} 17. Rxe3 {[%emt 0:00:01]} f6 {[%emt 0:01:31]} (17... c5 $17 18. Rg3 c4) 18. Bg4 {[%emt 0:04:46]} (18. exf6 $15 Rxf6 (18... Nxf6 19. Nc5 $11) 19. Rb3) 18... Nb6 {[%emt 0:04:59]} (18... fxe5 19. Bxe6+ Kh8 20. Bxd7 Bxd7 21. Rxe5 $17) ({Black should try} 18... f5 19. Be2 c5) 19. Qa5 $17 {[%emt 0:00:48]} fxe5 {[%emt 0:12:15]} 20. fxe5 {[%emt 0:01:55]} Rxf1+ {[%emt 0:00:04]} 21. Kxf1 {[%emt 0:00:07]} Qb7 {[%emt 0:03:02]} (21... Bd7 $17 {...Rc8 is the strong threat.} 22. Nc5 Qd8) 22. Be2 {[%emt 0:02:57]} Rb8 {[%emt 0:08:19]} 23. Nc5 {[%emt 0:08:50]} Qe7 {[%emt 0:02:04]} 24. Rb3 {[%emt 0:06:57]} (24. Kg1 $11) 24... Nd7 {[%emt 0:03:09]} ({Black should play} 24... Bd7 $15) 25. Qc7 $36 {[%emt 0:04:05][%mdl 2048] And now Nxd7 would win. White has some pressure.} Qf8+ {[%emt 0:01:07]} 26. Ke1 {[%emt 0:06:22] Active counter play!} Rxb3 {[%emt 0:02:37]} 27. Nxb3 {[%emt 0:00:01]} Qb4+ {[%emt 0:02:02]} 28. Kd1 {[%emt 0:00:45]} Qb8 {[%emt 0:00:33]} 29. Qxc6 {[%emt 0:00:28]} Kf7 {[%emt 0:01:25]} 30. Bb5 {[%emt 0:02:43] Black must now prevent Nc5.} (30. Ba6 $5 Nb6 $8 31. Nc5 $11) 30... Ke7 {[%emt 0:07:53]} (30... Qb6 $11) 31. a4 {[%emt 0:05:01]} (31. Nc5 $16 Qb6 32. Qxc8 Qxb5 33. Nxd7 Qxd7 34. Qg8) 31... a6 $1 $11 {[%emt 0:04:29]} 32. Bd3 {[%emt 0:05:21]} Nxe5 {[%emt 0:01:27]} 33. Qc5+ {[%emt 0:00:32]} Kf7 {[%emt 0:01:19]} 34. Qf2+ {[%emt 0:02:26]} (34. Be2 $1 $11) 34... Kg8 $17 {[%emt 0:00:25]} 35. Qg3 {[%emt 0:02:56]} Qd6 {[%emt 0:00:22]} 36. a5 {[%emt 0:02:21]} Bd7 {[%emt 0:03:12]} (36... Qb8 $11) 37. Qf4 {[%emt 0:01:54]} (37. Bxa6 $1 $14 Qxa6 38. Qxe5) 37... Be8 {[%emt 0:00:15]} (37... Bc8 $11) 38. Bxa6 $14 {[%emt 0:00:39]} Qxa6 {[%emt 0:01:55]} (38... Qc7 $14) 39. Qxe5 {[%emt 0:00:09][%mdl 4096] Endgame. KQB-KQN} Qf1+ {[%emt 0:00:13]} (39... Bg6 $16) 40. Kd2 $18 {[%emt 0:00:23]} Qxg2+ {[%emt 0:00:23]} (40... Kf7 {might work better.} 41. g3 Qb5) 41. Kc3 {[%emt 0:00:26]} Qf3+ {[%emt 0:00:38]} 42. Kd2 $2 {[%emt 0:01:00]} ({Better is} 42. Kb2 $18 {[%cal Ob3d4] Strongly threatening Nd4!} Qe4 43. Qb8) 42... Qf2+ {[%emt 0:00:28] [#]} (42... Qg2+ $1 $11 43. Kc3 h6) 43. Kc1 $1 $16 {[%emt 0:00:29][%mdl 1024] White has strong compensation.} Qf1+ {[%emt 0:00:10]} (43... Kf7 $16) 44. Kd2 $2 {[%emt 0:00:51]} ({Only move:} 44. Kb2 $18 Qa6 45. Qc7) 44... Qf2+ $11 {[%emt 0:00:28]} 45. Kc1 {[%emt 0:03:40] Weighted Error Value: White=0.34/Black=0.37.  Missed win:     	White=2     	---        Mistake:       	White=5     	Black=12     Inaccurate:     	White=3     	Black=3      OK:         	White=10    	Black=10     Best:        	White=3     	Black=2      Strong:       	White=1     	Black=1} 1/2-1/2

[Event "Marshall CC U2400 April 2024"]
[Site "New York"]
[Date "2024.04.21"]
[Round "4.3"]
[White "Sarkar, Justin"]
[Black "Shen, Alice"]
[Result "1-0"]
[ECO "D48"]
[WhiteElo "2279"]
[BlackElo "1682"]
[Annotator "TA"]
[PlyCount "69"]
[EventDate "2024.04.20"]
[EventType "swiss"]
[EventCountry "USA"]
[SourceTitle "playchess.com"]
[Source "ChessBase"]
[SourceQuality "1"]
[TimeControl "5400+30"]

{[%evp 16,68,-7,0,0,-32,-29,-18,-14,0,0,0,21,0,37,32,29,46,82,93,93,82,233,265,712,686,706,731,790,770,766,771,798,787,800,767,993,993,941,905,2464,2325,4998,4994,2472,2332,29984,29985,29985,29986,29997,29998,29998,29999,29999]} 1. d4 {[%emt 0:01:09]} d5 {[%emt 0:09:36]} 2. c4 {[%emt 0:00:06]} c6 {[%emt 0:00:03]} 3. Nf3 {[%emt 0:04:17]} Nf6 {[%emt 0:00:04]} 4. Nc3 {[%emt 0:03:32]} e6 {[%emt 0:00:08]} 5. e3 {[%emt 0:07:26]} Nbd7 {[%emt 0:00:20]} 6. Bd3 {[%emt 0:00:18]} dxc4 {[%emt 0:00:03]} 7. Bxc4 {[%emt 0:00:04]} b5 {[%emt 0:00:06]} 8. Bd3 {[%emt 0:00:05]} a6 {[%emt 0:00:06]} 9. a4 {[%emt 0:01:06][%cal Ra4b5]} Bb7 {[%emt 0:00:52]} 10. e4 {[%emt 0:11:26]} b4 $1 {[%emt 0:00:58]} 11. e5 {[%emt 0:00:08]} bxc3 {[%emt 0:01:44] The position is equal.} 12. exf6 {[%emt 0:00:05]} Nxf6 {[%emt 0:00:51]} 13. bxc3 {[%emt 0:00:15]} c5 {[%emt 0:00:38][%cal Bc6c5,Bc5c4][%mdl 32]} 14. Rb1 {[%emt 0:00:45][%cal Ba1b1,Bb1b7,Bb7f7][%mdl 32]} Qc7 {[%emt 0:01:41] [#]} 15. Bf4 $1 {[%emt 0:13:36]} Qxf4 {[%emt 0:02:06]} 16. Rxb7 {[%emt 0:00:03] Ne5 is the strong threat.} c4 {[%emt 0:00:29]} 17. g3 {[%emt 0:09:46]} (17. Bxc4 $2 {too greedy.} Qe4+ 18. Qe2 Qxb7 $19) 17... Qd6 {[%emt 0:00:29] [#]} 18. Be2 {[%emt 0:00:16][%cal Of3e5,Bd3e2,Be2f3,Bf3d5][%mdl 32] White has more active pieces.} ({Worse is} 18. Bxc4 Qc6 19. Qb3 Qxf3 $17) 18... Qc6 $2 {[%emt 0:01:01] [#] This move loses the game for Black.} (18... Qd5 $16 {was necessary.} 19. Qb1 Bd6) 19. Rxf7 $1 $18 {[%emt 0:05:35][%cal Oe1g1] Hoping for 0-0!} Rg8 $2 {[%emt 0:05:33] [#]} (19... Nd7) 20. O-O $1 {[%emt 0:02:01] And now Ne5 would win.} Bd6 {[%emt 0:01:06]} (20... Qb6 21. Ne5) 21. Ng5 {[%emt 0:06:58]} h6 {[%emt 0:02:24] [#]} 22. Rxf6 $1 {[%emt 0:10:28][%mdl 512]} gxf6 {[%emt 0:00:56]} 23. Bf3 {[%emt 0:02:29]} Qc8 {[%emt 0:01:05] [#]} 24. Nxe6 $1 {[%emt 0:01:03][%mdl 512] Black is weak on the light squares} Ra7 {[%emt 0:01:41]} 25. Bd5 {[%emt 0:00:47] Black must now prevent Qh5+.} Re7 {[%emt 0:01:59]} 26. Qh5+ {[%emt 0:00:46]} Kd7 {[%emt 0:00:20]} 27. Qf5 {[%emt 0:04:56][%cal Of1b1] Strongly threatening Rb1!} Rge8 {[%emt 0:02:24]} 28. Rb1 {[%emt 0:01:34]} ({Inferior is} 28. Qxf6 Rxe6 29. Bxe6+ Rxe6 $11) 28... Rxe6 {[%emt 0:00:29]} 29. Bxe6+ {[%emt 0:00:06]} Rxe6 {[%emt 0:00:09]} 30. d5 {[%emt 0:00:03][%cal Bd4d5,Bd5e6][%mdl 32]} Qc5 {[%emt 0:01:56]} 31. dxe6+ {[%emt 0:00:26] White mates.} Ke7 {[%emt 0:00:18]} 32. Rb7+ {[%emt 0:00:08]} Ke8 {[%emt 0:00:16]} 33. Qg6+ {[%emt 0:00:06]} Kd8 {[%emt 0:00:08]} 34. Rd7+ {[%emt 0:00:04]} Kc8 {[%emt 0:00:11]} 35. Qe8# {[%emt 0:00:03] Weighted Error Value: White=0.03 (flawless) /Black=0.74.  Mistake:       	---       	Black=2      Inaccurate:     	White=1     	Black=2      OK:         	White=6     	Black=3      Best:        	White=2     	Black=1      Strong:       	White=1     	Black=1} 1-0

[Event "Marshall CC U2400 April 2024"]
[Site "New York"]
[Date "2024.04.21"]
[Round "4.4"]
[White "Kozower, Ethan"]
[Black "Paruchuri, Naveen"]
[Result "1-0"]
[ECO "B52"]
[WhiteElo "1943"]
[BlackElo "1866"]
[Annotator "TA"]
[PlyCount "39"]
[EventDate "2024.04.20"]
[EventType "swiss"]
[EventCountry "USA"]
[SourceTitle "playchess.com"]
[Source "ChessBase"]
[SourceQuality "1"]
[TimeControl "5400+30"]

{[%evp 19,39,83,79,87,94,88,85,77,95,92,175,175,256,253,362,352,351,337,710,688,885,883]} 1. e4 {[%emt 0:04:20]} c5 {[%emt 0:00:14]} 2. Nf3 {[%emt 0:00:21]} Nc6 {[%emt 0:00:06]} 3. Bb5 {[%emt 0:00:11]} d6 {[%emt 0:00:07]} 4. O-O {[%emt 0:01:04]} Bd7 {[%emt 0:00:15]} 5. c3 {[%emt 0:00:43]} Nf6 {[%emt 0:00:19]} 6. Re1 {[%emt 0:00:49]} e5 {[%emt 0:01:00]} 7. d4 {[%emt 0:02:56]} cxd4 {[%emt 0:00:32]} 8. cxd4 {[%emt 0:00:10]} exd4 {[%emt 0:00:44]} 9. Nxd4 {[%emt 0:00:26]} Nxd4 {[%emt 0:00:40]} 10. Bxd7+ {[%emt 0:00:10]} Qxd7 {[%emt 0:00:14]} 11. Qxd4 {[%emt 0:00:08]} Be7 {[%emt 0:00:34]} 12. Nc3 {[%emt 0:08:24]} O-O {[%emt 0:00:34]} 13. h3 {[%emt 0:07:15] White is more active. White is better.} Rfc8 {[%emt 0:01:36]} 14. Bg5 {[%emt 0:03:31] e5 would now be deadly.} Qc6 {[%emt 0:04:57] [#]} (14... Qd8 $16) 15. Nd5 $1 $18 {[%emt 0:01:42]} Qd7 {[%emt 0:02:35]} (15... Nxd5 $2 16. exd5 Qc2 17. Rxe7 $18 (17. Bxe7 Rc4 $18)) (15... Qe8 {keeps fighting.} 16. Bxf6 (16. Nxf6+ Bxf6 17. Bxf6 gxf6 $18) 16... Bxf6 17. Nxf6+ gxf6 18. Qxf6 (18. Qxd6 Rc4 $18) 18... Qe5) 16. Bxf6 {[%emt 0:03:17]} Bxf6 {[%emt 0:00:34] [#]} (16... gxf6 {was worth a try.} 17. e5 fxe5 18. Rxe5 dxe5 19. Nf6+ Bxf6 20. Qxd7 b6) 17. e5 $1 {[%emt 0:26:02][%mdl 512]} Bd8 {[%emt 0:01:31]} (17... Bxe5 $2 {perishes.} 18. Rxe5 Kh8 (18... dxe5 $2 {too greedy.} 19. Nf6+ gxf6 20. Qxd7 $18) 19. Re7 $18) (17... Be7 18. Nxe7+) 18. exd6 {[%emt 0:00:03]} Rc2 $2 {[%emt 0:03:59]} (18... Bb6 19. Nxb6 axb6) 19. Qe4 {[%emt 0:01:13] Intending Qe8+ and mate.} Qxd6 {[%emt 0:00:34]} 20. Qxc2 {[%emt 0:00:15] Black got outplayed after the opening.   Weighted Error Value: White=0.01 (flawless) /Black=0.52.  Mistake:       	---       	Black=4      OK:         	White=6     	Black=2      Strong:       	White=1     	---} 1-0